{"text_format":"1","workbook":"xlsx","n_sheets":3,"sheets":["2019","2020","2021"],"not_rendered":{"charts":0,"images":0,"macros":0,"external_links":0,"defined_names":2,"comments":0,"pivot_tables":0},"unopened":[],"bounds":{"document_bytes":16777216,"sheet_cells":100000,"rows_first":2000,"rows_last":500,"rows_between":2000,"halvings":0,"cell_chars":16384,"cell_head_chars":4096},"cells_cut":0,"cells_raw":0,"read":"whole","date_system":"1900"}

{"sheet":"2019","index":0,"n_rows":141,"n_cols":26,"rows_kept":141,"cut":false,"hidden":false,"merged":[[158,1,158,15],[77,7,77,9],[77,11,77,12],[77,13,77,14],[77,15,77,18],[118,15,118,18],[140,7,140,9],[97,11,97,12],[126,11,126,12],[99,7,99,9],[118,13,118,14],[126,13,126,14],[99,11,99,12],[112,7,112,9],[105,13,105,14],[105,7,105,9],[105,11,105,12],[112,13,112,14],[112,11,112,12],[139,7,139,9],[118,11,118,12],[126,7,126,9],[118,7,118,9],[137,7,137,9],[128,7,128,9],[132,7,132,9],[130,7,131,9],[97,7,97,9],[90,13,90,14],[103,7,103,9],[99,13,99,14],[90,11,90,12],[103,11,103,12],[97,13,97,14],[103,13,103,14],[92,7,92,9],[92,11,92,12],[85,11,85,12],[92,13,92,14],[1,2,1,6],[3,7,3,9],[3,11,3,12],[72,7,72,9],[66,7,66,9],[85,7,85,9],[38,11,38,12],[83,7,83,9],[49,7,49,9],[49,11,49,12],[55,7,55,9],[57,7,57,9],[57,11,57,12],[63,7,63,9],[63,11,63,12],[90,7,90,9],[10,7,10,9],[10,11,10,12],[12,7,12,9],[20,7,20,9],[47,7,47,9],[38,7,38,9],[40,7,40,9],[31,7,31,9],[22,7,22,9],[85,13,85,14],[83,11,83,12],[72,11,72,12],[66,13,66,14],[47,11,47,12],[40,11,40,12],[83,13,83,14],[57,13,57,14],[72,13,72,14],[66,11,66,12],[63,13,63,14],[22,23,22,25],[55,15,55,18],[47,13,47,14],[40,13,40,14],[63,23,63,25],[31,15,31,18],[29,15,29,18],[38,15,38,18],[55,13,55,14],[20,23,20,25],[29,7,29,9],[31,13,31,14],[29,13,29,14],[22,13,22,14],[22,11,22,12],[29,11,29,12],[31,11,31,12],[47,15,47,18],[20,19,20,22],[38,13,38,14],[3,23,3,25],[12,19,12,22],[12,23,12,25],[10,23,10,25],[3,19,3,22],[29,19,29,22],[29,23,29,25],[3,15,3,18],[10,19,10,22],[10,15,10,18],[12,15,12,18],[20,15,20,18],[22,15,22,18],[22,19,22,22],[20,11,20,12],[20,13,20,14],[3,13,3,14],[10,13,10,14],[12,11,12,12],[55,11,55,12],[49,13,49,14],[12,13,12,14],[83,23,83,25],[72,23,72,25],[77,19,77,22],[66,23,66,25],[83,19,83,22],[83,15,83,18],[77,23,77,25],[63,15,63,18],[72,19,72,22],[63,19,63,22],[66,19,66,22],[72,15,72,18],[66,15,66,18],[57,15,57,18],[31,19,31,22],[55,23,55,25],[49,23,49,25],[38,19,38,22],[40,15,40,18],[49,15,49,18],[49,19,49,22],[47,19,47,22],[55,19,55,22],[57,23,57,25],[31,23,31,25],[40,19,40,22],[57,19,57,22],[38,23,38,25],[47,23,47,25],[40,23,40,25],[92,15,92,18],[97,19,97,22],[85,19,85,22],[99,23,99,25],[103,23,103,25],[105,23,105,25],[103,19,103,22],[105,19,105,22],[99,19,99,22],[112,23,112,25],[90,23,90,25],[92,23,92,25],[85,23,85,25],[97,23,97,25],[85,15,85,18],[97,15,97,18],[90,15,90,18],[90,19,90,22],[92,19,92,22],[112,19,112,22],[103,15,103,18],[99,15,99,18],[126,19,126,22],[126,23,126,25],[118,19,118,22],[118,23,118,25],[112,15,112,18],[105,15,105,18],[126,15,126,18]]}
[]
[null,null,"PIANO DEGLI OBIETTIVI 2019/2021 - ANNO 2019"]
[]
[null,null,null,null,null,null,null,"F. Callegher ",null,null,"D. Coro'","M. Favaron",null,"S. Pattaro ",null,"N. Rossato",null,null,null,"A. Scroccaro",null,null,null,"P. Stradiotto"]
["n.","OBIETTIVO STRATEGICO triennio 2019-2021","descrizione","risultati attesi","tempi di realizzazione ","indicatori di risultato","peso  percentuale","LL:PP","MANUTENZIONI","AMBIENTE","ED. PRIVATA","SEGRETERIA","LEGALE CASA","ANAGRAFE","RELAZIONI PUBBL","URBANISTICA","COMMERCIO","SUAP","CED","CONTABILITA'","ECONOMATO","TRIBUTI","RISORSE UMANE","SERV. SOCIALE","P.I. SPORT ASSOC","BIBLIOTECA"]
[1,"ISTITUZIONE IMPOSTA DI SOGGIORNO","obiettivo dell'ente è lo sviluppo del turismo nel territorio comunale quale comune di prima cintura della Città Metropolitana.","1) convocazione associazioni di categoria e operatori economici interessati","entro il 30/06/2019","SI",null,null,null,null,null,null,null,null,null,null,"X",null,null,null,null,"X"]
[null,null,null,"2) report all'A.C ","entro il 31/08/2019","SI",null,null,null,null,null,null,null,null,null,null,"X",null,null,null,null,"X"]
[null,null,null,"3) proposta all'A.C.","entro il 30/09/2019","SI",null,null,null,null,null,null,null,null,null,null,"X",null,null,null,null,"X"]
[null,null,null,"4) predisposizione bozza di regolamento ","entro il 15/10/2019 ","SI",null,null,null,null,null,null,null,null,null,null,null,null,null,null,null,"X"]
[null,null,null,"5) predisposizione proposta di deliberazione consiliare","entro il  giorno antecedente la convocazione della seduta del Consiglio comunale per la approvazione","IN ATTESA DI INDIRIZZI DA PARTE A.C.",null,null,null,null,null,null,null,null,null,null,null,null,null,null,null,"X"]
["peso  percentuale",null,null,null,null,null,{"$f":"100/14","v":7.1428571428571432},null,null,null,null,null,null,null,null,{"$f":"100/6","v":16.666666666666668},null,null,null,{"$f":"100/6","v":16.666666666666668}]
[]
[null,null,null,null,null,null,null,"F. Callegher ",null,null,"D. Coro'","M. Favaron",null,"S. Pattaro ",null,"N. Rossato",null,null,null,"A. Scroccaro",null,null,null,"P. Stradiotto"]
["n.","OBIETTIVO DI MANTENIMENTO triennio 2019-2021","descrizione","risultati attesi","tempi di realizzazione ","indicatori di risultato","peso  percentuale","LL:PP","MANUTENZIONI","AMBIENTE","ED. PRIVATA","SEGRETERIA","LEGALE CASA","ANAGRAFE","RELAZIONI PUBBL","URBANISTICA","COMMERCIO","SUAP","CED","CONTABILITA'","ECONOMATO","TRIBUTI","RISORSE UMANE","SERV. SOCIALE","P.I. SPORT ASSOC","BIBLIOTECA"]
[2,"AGGIORNAMENTO CARTA DEI SERVIZI \"Abitare la casa a Martellago\"","obiettivo dell'ente è fornire al cittadino una guida su ciò che deve fare per venire ad abitare a Martellago","1) Convocazione conferenza dei servizi interessati da parte del Responsabile del Settore Demografici anche alla presenza dei Responsabili di Settore interessati alle altre Carte dei Servizi per concordare la forma editoriale di tutte","entro il 30/06/2019","SI",null,null,null,null,null,null,null,"X"]
[null,null,null,"2) aggiornamento delle sezioni della carta","entro il 15/09/2019","SI",null,null,null,"X","X",null,"X","X","X (MESSI)","X",null,null,null,null,null,"X"]
[null,null,null,"3) confezionamento complessivo della bozza in collaborazione con i servizi interessati","entro il 15/11/2019",null,null,null,null,null,null,null,null,null,"X"]
[null,null,null,"4) proposta all'A.C.","entro il 30/11/2019",null,null,null,null,null,null,null,null,null,"X"]
[null,null,null,"5) pubblicazione sul sito","entro IL 15/12/2019 e comunque dopo il parere favorevole dell'amministrazione"]
[null,null,null,"6) acquisizione software/servizio per attivazione APP su smatphone PER LA MESSA IN LINEA DI TUTTE LE CARTE DEI SERVIZI","entro il 31/12/2019",null,null,null,null,null,null,null,null,null,"X",null,null,null,"X"]
["peso  percentuale",null,null,null,null,null,{"$f":"100/14","v":7.1428571428571432},{"$f":"100/7","v":14.285714285714286},null,null,{"$f":"100/4","v":25},{"$f":"100/5","v":20},null,{"$f":"100/9","v":11.111111111111111},null,{"$f":"100/6","v":16.666666666666668},null,null,null,{"$f":"100/6","v":16.666666666666668}]
[]
[null,null,null,null,null,null,null,"F. Callegher ",null,null,"D. Coro'","M. Favaron",null,"S. Pattaro ",null,"N. Rossato",null,null,null,"A. Scroccaro",null,null,null,"P. Stradiotto"]
["n.","OBIETTIVO DI MIGLIORAMENTO triennio 2019-2021","descrizione","risultati attesi","tempi di realizzazione ","indicatori di risultato","peso  percentuale","LL:PP","MANUTENZIONI","AMBIENTE","ED. PRIVATA","SEGRETERIA","LEGALE CASA","ANAGRAFE","RELAZIONI PUBBL","URBANISTICA","COMMERCIO","SUAP","CED","CONTABILITA'","ECONOMATO","TRIBUTI","RISORSE UMANE","SERV. SOCIALE","P.I. SPORT ASSOC","BIBLIOTECA"]
[3," CARTA DEI SERVIZI \"La mia attività produttiva a Martellago\"","obiettivo dell'ente è fornire al cittadino una  guida su ciò che deve fare per avviare una attività produttiva a Martellago","1) Convocazione conferenza dei servizi interessati da parte del Responsabile del Assetto del Territorio","entro il 30/06/2019","SI",null,null,null,null,null,null,null,null,null,null,"X"]
[null,null,"NADIA","2) selezionare gli argomenti di interesse che costituiranno il corpo della carta","entro il 31/07/2019","SI",null,null,"X","X","X",null,null,null,null,null,"X","X",null,null,null,"X"]
[null,null,null,"3) proposta all'A.C","entro il 31/08/2019","SI",null,null,null,null,null,null,null,null,null,null,"X"]
[null,null,null,"4) confezionamento complessivo della bozza in collaborazione con i servizi interessati","entro 2 mesi dal parere favorevole dell'amministrazione ",null,null,null,null,null,null,null,null,null,"X",null,"X"]
[null,null,null,"5) pubblicazione sul sito","entro due mesi dalla data di trasmissione all'ufficio URP ",null,null,null,null,null,null,null,null,null,"X"]
["peso  percentuale",null,null,null,null,null,{"$f":"100/14","v":7.1428571428571432},{"$f":"100/7","v":14.285714285714286},null,null,{"$f":"100/4","v":25},null,null,{"$f":"100/9","v":11.111111111111111},null,{"$f":"100/6","v":16.666666666666668},null,null,null,{"$f":"100/6","v":16.666666666666668}]
[]
[null,null,null,null,null,null,null,"F. Callegher ",null,null,"D. Coro'","M. Favaron",null,"S. Pattaro ",null,"N. Rossato",null,null,null,"A. Scroccaro",null,null,null,"P. Stradiotto"]
["n.","OBIETTIVO DI MIGLIORAMENTO triennio 2019-2021","descrizione","risultati attesi","tempi di realizzazione ","indicatori di risultato","peso  percentuale","LL:PP","MANUTENZIONI","AMBIENTE","ED. PRIVATA","SEGRETERIA","LEGALE CASA","ANAGRAFE","RELAZIONI PUBBL","URBANISTICA","COMMERCIO","SUAP","CED","CONTABILITA'","ECONOMATO","TRIBUTI","RISORSE UMANE","SERV. SOCIALE","P.I. SPORT ASSOC","BIBLIOTECA"]
[4," CARTA DEI SERVIZI \"Servizi alla persona in Comune a Martellago\"","obiettivo dell'ente è fornire al cittadino una  guida su ciò che deve fare per i bisogni della persona","1) Convocazione conferenza dei servizi interessati da parte del Responsabile del Settore Socio culturale","entro il 15/07/2019","SI",null,null,null,null,null,null,null,null,null,null,null,null,null,null,null,null,null,"X"]
[null,null,null,"2) selezionare gli argomenti di interesse che costituirano il corpo della carta","entro il 31/07/2019","SI",null,null,null,null,null,null,"X","X",null,null,null,null,null,null,null,null,null,"X"]
[null,null,null,"3) proposta all'A.C","entro il 31/08/2019","SI",null,null,null,null,null,null,null,null,null,null,null,null,null,null,null,null,null,"X"]
[null,null,null,"4) confezionamento complessivo della bozza in collaborazione con i servizi interessati","entro 2 mesi dal parere favorevole dell'amministrazione",null,null,null,null,null,null,null,null,null,"X",null,"X",null,null,null,null,null,null,"X"]
[null,null,null,"5) pubblicazione sul sito","entro due mesi dalla data di trasmissione all'ufficio URP ",null,null,null,null,null,null,null,null,null,"X"]
["peso  percentuale",null,null,null,null,null,{"$f":"100/14","v":7.1428571428571432},null,null,null,null,{"$f":"100/5","v":20},null,{"$f":"100/9","v":11.111111111111111},null,null,null,null,null,null,null,null,null,{"$f":"100/6","v":16.666666666666668}]
[]
[null,null,null,null,null,null,null,"F. Callegher ",null,null,"D. Coro'","M. Favaron",null,"S. Pattaro ",null,"N. Rossato",null,null,null,"A. Scroccaro",null,null,null,"P. Stradiotto"]
["n.","OBIETTIVO DI MIGLIORAMENTO triennio 2019-2021","descrizione","risultati attesi","tempi di realizzazione ","indicatori di risultato","peso  percentuale","LL:PP","MANUTENZIONI","AMBIENTE","ED. PRIVATA","SEGRETERIA","LEGALE CASA","ANAGRAFE","RELAZIONI PUBBL","URBANISTICA","COMMERCIO","SUAP","CED","CONTABILITA'","ECONOMATO","TRIBUTI","RISORSE UMANE","SERV. SOCIALE","P.I. SPORT ASSOC","BIBLIOTECA"]
[5," CARTA DEI SERVIZI \"Mio figlio a scuola a Martellago\"","obiettivo dell'ente è fornire al cittadino una guida su ciò che deve fare per l'istruzione del proprio figlio","1) Convocazione conferenza dei servizi interessati da parte del Responsabile del Settore Socio culturale","entro il 30/06/2019","SI",null,null,null,null,null,null,null,null,null,null,null,null,null,null,null,null,null,null,"X"]
[null,null,null,"2) selezionare gli argomenti di interesse che costituirano il corpo della carta","entro il 31/07/2019","SI",null,null,null,null,null,null,null,null,null,null,null,null,null,null,null,null,null,null,"X","X"]
[null,null,null,"3) proposta all'A.C","entro il 31/08/2019","SI",null,null,null,null,null,null,null,null,null,null,null,null,null,null,null,null,null,null,"X"]
[null,null,null,"4) confezionamento complessivo della bozza in collaborazione con i servizi interessati","entro 2 mesi dal parere favorevole dell'amministrazione",null,null,null,null,null,null,null,null,null,"X",null,null,null,null,null,null,null,null,null,"X"]
[null,null,null,"5) pubblicazione sul sito","entro due mesi dalla data di trasmissione all'ufficio URP ",null,null,null,null,null,null,null,null,null,"X"]
["peso  percentuale",null,null,null,null,null,{"$f":"100/14","v":7.1428571428571432},null,null,null,null,null,null,{"$f":"100/9","v":11.111111111111111},null,null,null,null,null,null,null,null,null,{"$f":"100/6","v":16.666666666666668}]
[]
[null,null,null,null,null,null,null,"F. Callegher ",null,null,"D. Coro'","M. Favaron",null,"S. Pattaro ",null,"N. Rossato",null,null,null,"A. Scroccaro",null,null,null,"P. Stradiotto"]
["n.","OBIETTIVO DI MIGLIORAMENTO triennio 2019-2021","descrizione","risultati attesi","tempi di realizzazione ","indicatori di risultato","peso  percentuale","LL:PP","MANUTENZIONI","AMBIENTE","ED. PRIVATA","SEGRETERIA","LEGALE CASA","ANAGRAFE","RELAZIONI PUBBL","URBANISTICA","COMMERCIO","SUAP","CED","CONTABILITA'","ECONOMATO","TRIBUTI","RISORSE UMANE","SERV. SOCIALE","P.I. SPORT ASSOC","BIBLIOTECA"]
[6," CARTA DEI SERVIZI \"Le pari opportunità a Martellago\"","obiettivo dell'ente è fornire al cittadino una  guida per la tutela dei diritti e le pari opportunità","1) selezionare gli argomenti di interesse che costituirano il corpo della carta","entro il 31/07/2019","SI",null,null,null,null,null,null,null,null,null,null,null,null,null,null,null,null,null,"X MILAN"]
[null,null,null,"2) proposta all'A.C da parte del Responsabile del Settore Socio Culturale","entro il 31/07/2019","SI",null,null,null,null,null,null,null,null,null,null,null,null,null,null,null,null,null,"X"]
[null,null,null,"3) confezionamento complessivo della bozza","entro 2 mesi dal parere favorevole dell'amministrazione","SI",null,null,null,null,null,null,null,null,"X",null,null,null,null,null,null,null,null,"X"]
[null,null,null,"4) pubblicazione sul sito","entro due mesi dalla data di trasmissione all'ufficio URP ",null,null,null,null,null,null,null,null,null,"X"]
["peso  percentuale",null,null,null,null,null,{"$f":"100/14","v":7.1428571428571432},null,null,null,null,null,null,{"$f":"100/9","v":11.111111111111111},null,null,null,null,null,null,null,null,null,{"$f":"100/6","v":16.666666666666668}]
[]
[null,null,null,null,null,null,null,"F. Callegher ",null,null,"D. Coro'","M. Favaron",null,"S. Pattaro ",null,"N. Rossato",null,null,null,"A. Scroccaro",null,null,null,"P. Stradiotto"]
["n.","OBIETTIVO DI MIGLIORAMENTO triennio 2019-2021","descrizione","risultati attesi","tempi di realizzazione ","indicatori di risultato","peso  percentuale","LL:PP","MANUTENZIONI","AMBIENTE","ED. PRIVATA","SEGRETERIA","LEGALE CASA","ANAGRAFE","RELAZIONI PUBBL","URBANISTICA","COMMERCIO","SUAP","CED","CONTABILITA'","ECONOMATO","TRIBUTI","RISORSE UMANE","SERV. SOCIALE","P.I. SPORT ASSOC","BIBLIOTECA"]
[7," CARTA DEI SERVIZI \"L'ambiente\"","obiettivo dell'ente è fornire al cittadino una guida sulla gestione dei rifiuti urbani","1) selezionare gli argomenti di interesse che costituirano il corpo della carta a cura del Responsabile del Settore gestione del Territorio","entro il 31/07/2019","SI",null,null,null,"X"]
[null,null,null,"2) proposta all'A.C","entro il 31/08/2019","SI",null,null,null,"X"]
[null,null,null,"3) confezionamento complessivo della bozza ","entro 2 mesi dal parere favorevole dell'amministrazione","SI",null,null,null,"X",null,null,null,null,"X"]
[null,null,null,"4) pubblicazione sul sito","entro due mesi dalla data di trasmissione all'ufficio URP ",null,null,null,null,null,null,null,null,null,"X"]
["peso  percentuale",null,null,null,null,null,{"$f":"100/14","v":7.1428571428571432},{"$f":"100/7","v":14.285714285714286},null,null,null,null,null,{"$f":"100/9","v":11.111111111111111}]
[]
[]
[null,null,null,null,null,null,null,"F. Callegher ",null,null,"D. Coro'","M. Favaron",null,"S. Pattaro ",null,"N. Rossato",null,null,null,"A. Scroccaro",null,null,null,"P. Stradiotto"]
["n.","OBIETTIVO DI MIGLIORAMENTO triennio 2019-2021","descrizione","risultati attesi","tempi di realizzazione ","indicatori di risultato","peso  percentuale","LL:PP","MANUTENZIONI","AMBIENTE","ED. PRIVATA","SEGRETERIA","LEGALE CASA","ANAGRAFE","RELAZIONI PUBBL","URBANISTICA","COMMERCIO","SUAP","CED","CONTABILITA'","ECONOMATO","TRIBUTI","RISORSE UMANE","SERV. SOCIALE","P.I. SPORT ASSOC","BIBLIOTECA"]
[8," CARTA DEI SERVIZI \"La biblioteca civica\"","obiettivo dell'ente è fornire al cittadino una guida sui servizi offerti dalla biblioteca","1) selezionare gli argomenti di interesse che costituirano il corpo della carta a cura del Responsabile del Settore Socio culturale","entro il 30/06/2019","SI",null,null,null,null,null,null,null,null,null,null,null,null,null,null,null,null,null,null,null,"X"]
[null,null,null,"2) proposta all'A.C","entro il 31/07/2019","SI",null,null,null,null,null,null,null,null,null,null,null,null,null,null,null,null,null,null,null,"X"]
[null,null,null,"3) confezionamento complessivo della bozza ","entro 2 mesi dal parere favorevole dell'amministrazione",null,null,null,null,null,null,null,null,null,"X",null,null,null,null,null,null,null,null,null,null,"X"]
[null,null,null,"4) pubblicazione sul sito","entro due mesi dalla data di trasmissione all'ufficio URP ",null,null,null,null,null,null,null,null,null,"X"]
["peso  percentuale",null,null,null,null,null,{"$f":"100/14","v":7.1428571428571432},null,null,null,null,null,null,{"$f":"100/9","v":11.111111111111111},null,null,null,null,null,null,null,null,null,{"$f":"100/6","v":16.666666666666668}]
[]
[]
[]
[]
[null,null,null,null,null,null,null,"F. Callegher ",null,null,"D. Coro'","M. Favaron",null,"S. Pattaro ",null,"N. Rossato",null,null,null,"A. Scroccaro",null,null,null,"P. Stradiotto"]
["n.","OBIETTIVO STRATEGICO triennio 2019-2021","descrizione","risultati attesi","tempi di realizzazione ","indicatori di risultato","peso  percentuale","LL:PP","MANUTENZIONI","AMBIENTE","ED. PRIVATA","SEGRETERIA","LEGALE CASA","ANAGRAFE","RELAZIONI PUBBL","URBANISTICA","COMMERCIO","SUAP","CED","CONTABILITA'","ECONOMATO","TRIBUTI","RISORSE UMANE","SERV. SOCIALE","P.I. SPORT ASSOC","BIBLIOTECA"]
[9," Ricognizione delle aree edificabili","obiettivo dell'ente è quello di creare una banca dati delle aree edificabili al fine di mappare e monitorare la trasformazione delle stesse","1) Rappresentazione grafica su una mappa delle aree a cura del Responsabile del Settore Assetto del Territorio","entro il 30/06/2019","SI",null,null,null,null,null,null,null,null,null,"X"]
[null,null,null,"2) Analisi dello stato attuale di trasformazione delle aree","entro il 20/09/2019","SI",null,null,null,null,"X",null,null,null,null,"X"]
[null,null,null,"3) Valorizzazione delle aree mappate","entro il 30/9/2019","SI           (1.10.2019 PER RIENTRO DEL COORDINATORE)",null,"X",null,null,"X",null,null,null,null,"X",null,null,null,null,null,"X"]
[null,null,null,"4) Relazione alla A.C. ","entro il 15/10/2019","SI",null,null,null,null,null,null,null,null,null,"X"]
["peso  percentuale",null,null,null,null,null,{"$f":"100/14","v":7.1428571428571432},{"$f":"100/7","v":14.285714285714286},null,null,{"$f":"100/4","v":25},null,null,null,null,{"$f":"100/6","v":16.666666666666668},null,null,null,{"$f":"100/6","v":16.666666666666668}]
[]
[null,null,null,null,null,null,null,"F. Callegher ",null,null,"D. Coro'","M. Favaron",null,"S. Pattaro ",null,"N. Rossato",null,null,null,"A. Scroccaro",null,null,null,"P. Stradiotto"]
["n.","OBIETTIVO DI MIGLIORAMENTO DEI SERVIZI triennio 2019-2021","descrizione","risultati attesi","tempi di realizzazione ","indicatori di risultato","peso  percentuale","LL:PP","MANUTENZIONI","AMBIENTE","ED. PRIVATA","SEGRETERIA","LEGALE CASA","ANAGRAFE","RELAZIONI PUBBL","URBANISTICA","COMMERCIO","SUAP","CED","CONTABILITA'","ECONOMATO","TRIBUTI","RISORSE UMANE","SERV. SOCIALE","P.I. SPORT ASSOC","BIBLIOTECA"]
[10,"Revisione del regolamento per l'utilizzo degli impianti sportivi","Dare attuazione alla L.R. n. 8/11.5.2015 in materia di affidamento anche in concessione degli impianti sportivi comunali","1) condividire una bozza di regolamento tra i servizi interessati coordinati dal Responsabile del Settore Affari generali","entro il 30/6/2019","SI",null,null,"X",null,null,"X",null,null,null,null,null,null,null,null,null,null,null,null,"X"]
[null,null,null,"2) stesura definitiva della bozza di regolamento","entro il 31/7/2019","SI",null,null,null,null,null,"X"]
[null,null,null,"3) proposta all'A.C","entro il 31/8/2019","SI",null,null,null,null,null,"X"]
["peso  percentuale",null,null,null,null,null,{"$f":"100/14","v":7.1428571428571432},{"$f":"(100/7)-0.01","v":14.275714285714287},null,null,null,{"$f":"100/5","v":20},null,null,null,null,null,null,null,null,null,null,null,16.66]
[]
[null,null,null,null,null,null,null,"F. Callegher ",null,null,"D. Coro'","M. Favaron",null,"S. Pattaro ",null,"N. Rossato",null,null,null,"A. Scroccaro",null,null,null,"P. Stradiotto"]
["n.","OBIETTIVO TRASVERSALE triennio 2019-2021","descrizione","risultati attesi","tempi di realizzazione ","indicatori di risultato","peso  percentuale","LL:PP","MANUTENZIONI","AMBIENTE","ED. PRIVATA","SEGRETERIA","LEGALE CASA","ANAGRAFE","RELAZIONI PUBBL","URBANISTICA","COMMERCIO","SUAP","CED","CONTABILITA'","ECONOMATO","TRIBUTI","RISORSE UMANE","SERV. SOCIALE","P.I. SPORT ASSOC","BIBLIOTECA"]
[11,"Studio di nuove proposte di distributivo per il progetto esecutivo della ristrutturazione sede municipale. Studi per la razionalizzazione del trasferimento uffici dalla sede municipale e realizzazione interventi necessari .Piano di trasferimento degli uffici presso la sede ex scuola Goldoni. ","obiettivo dell'ente è ottimizzare l'utilizzo degli spazi della sede municipale oggetto di  ristrutturazione; minimizzare i disagi ai cittadini nel periodo propedeutico al trasloco, durante l'esecuzione dei lavori e fino all'ultimazione.","1) Redazione di proposte di nuovo distributivo della sede municipale secondo le sopravvenute esigenze dell'Amministarzione Comunale a cura del Responsabile del Settore gestione del Territorio","entro il  30/06/2019","SI",null,"X",null,null,null,null,null,null,"X(ARCHIVISTA)",null,null,null,"X"]
[null,null,null,"2) Redazione di proposta di nuovo distributivo della sede ex scuola Goldoni, al fine di ospitare tutti le funzioni ed i settori del Comune già allocate nella sede municipale. Convocazione di apposita conferenza dei Responsabili alla presenza dell'Assessore di riferimento.","entro il 31/07/2019","SI",null,"X",null,null,null,null,null,null,null,null,null,null,"X"]
[]
["peso  percentuale",null,null,null,null,null,{"$f":"100/14","v":7.1428571428571432},{"$f":"(100/7)-0.01","v":14.275714285714287},null,null,null,null,null,{"$f":"100/9","v":11.111111111111111},null,{"$f":"(100/6)-0.01","v":16.656666666666666}]
[]
[null,null,null,null,null,null,null,"F. Callegher ",null,null,"D. Coro'","M. Favaron",null,"S. Pattaro ",null,"N. Rossato",null,null,null,"A. Scroccaro",null,null,null,"P. Stradiotto"]
["n.","OBIETTIVO STRATEGICO triennio 2019-2021","descrizione","risultati attesi","tempi di realizzazione ","indicatori di risultato","peso  percentuale","LL:PP","MANUTENZIONI","AMBIENTE","ED. PRIVATA","SEGRETERIA","LEGALE CASA","ANAGRAFE","RELAZIONI PUBBL","URBANISTICA","COMMERCIO","SUAP","CED","CONTABILITA'","ECONOMATO","TRIBUTI","RISORSE UMANE","SERV. SOCIALE","P.I. SPORT ASSOC","BIBLIOTECA"]
[12,"Istituzione dell'ufficio per il reperimento di bandi regionali, nazionali e europei di finanziamento di progetti di miglioramento dei servizi","obiettivo dell'ente è creare un ufficio che si attivi nella ricerca e nello studio di bandi di finanziamento per reperire nuovi fondi alternativi ai prelievi fiscali sui cittadini ","1) Progettazione della struttura che sarà deputata alla gestione a cura del Responsabile del Settorre Affari generali","entro il 30/11/2019",null,null,null,null,null,null,"X","X"]
[null,null,null,"2) Organizzazione di corsi di formazione per preparare i dipendenti assegnati alla struttura di cui al punto precedente. ","entro il 30/11/2019",null,null,null,null,null,null,"X"]
["peso  percentuale",null,null,null,null,null,{"$f":"100/14","v":7.1428571428571432},null,null,null,null,{"$f":"100/5","v":20}]
[]
[null,null,null,null,null,null,null,"F. Callegher ",null,null,"D. Coro'","M. Favaron",null,"S. Pattaro ",null,"N. Rossato",null,null,null,"A. Scroccaro",null,null,null,"P. Stradiotto"]
["n.","OBIETTIVO STRATEGICO triennio 2019-2021","descrizione","risultati attesi","tempi di realizzazione ","indicatori di risultato","peso  percentuale","LL:PP","MANUTENZIONI","AMBIENTE","ED. PRIVATA","SEGRETERIA","LEGALE CASA","ANAGRAFE","RELAZIONI PUBBL","URBANISTICA","COMMERCIO","SUAP","CED","CONTABILITA'","ECONOMATO","TRIBUTI","RISORSE UMANE","SERV. SOCIALE","P.I. SPORT ASSOC","BIBLIOTECA"]
[13,"Istituzione della Consulta pubblico-privato per la valorizzazione e riqualificazione del territorio","obiettivo dell'ente è quello di coinvolgere i cittadini e gli operatori economici nella analisi degli interventi di pianificazione urbanistica da attuare  ","1) Analisi delle disposizioni statutarie e di legge che disciplinano la istituzione della Consulta su coordimaneto del Responsabile del Settore Assetto del Territorio","entro il 30/9/2019","SI"]
[null,"SOLO TITOLARI DI POSIZIONE ORGANIZZATIVA",null,"2) ricerca di esempi di organizzazione della Consulta","entro il 31/10/2019","SI"]
[null,null,null,"3) predisposizione bozza di regolamento ","entro il 30/11/2019"]
[null,null,null,"4) proposta alla A.C.","entro il 30/11/2019"]
[null,null,null,"5) predisposizione proposta di deliberazione ","entro il  un mese dal parere della A.C."]
["peso  percentuale",null,null,null,null,null,{"$f":"100/14","v":7.1428571428571432},{"$f":"(100/7)-0.01","v":14.275714285714287},null,null,25,{"$f":"100/5","v":20},null,11.12,null,{"$f":"(100/6)-0.01","v":16.656666666666666},null,null,null,16.66,null,null,null,16.66]
[]
[]
[]
[]
[]
[null,null,null,null,null,null,null,"F. Callegher ",null,null,"D. Coro'","M. Favaron",null,"S. Pattaro ",null,"N. Rossato",null,null,null,"A. Scroccaro",null,null,null,"P. Stradiotto"]
["n.","OBIETTIVO DI MIGLIORAMENTO DEI SERVIZI triennio 2019-2021","descrizione","risultati attesi","tempi di realizzazione ","indicatori di risultato","peso  percentuale","LL:PP","MANUTENZIONI","AMBIENTE","ED. PRIVATA","SEGRETERIA","LEGALE CASA","ANAGRAFE","RELAZIONI PUBBL","URBANISTICA","COMMERCIO","SUAP","CED","CONTABILITA'","ECONOMATO","TRIBUTI","RISORSE UMANE","SERV. SOCIALE","P.I. SPORT ASSOC","BIBLIOTECA"]
[14,"Realizzazione dl sistema informativo di gestione, monitoraggio e rendicontazione del ciclo della performance","obiettivo dell'ente è quello di rentrare tracciabile, monitorabile e verificabile lo stato di progettazione e realizzazione degli obiettivi gestionali e la valutazione del personale dell'ente  ","1)  predisporre il file per dettagliare la partecipazione di ciascun servizio e determinarne il peso ai fini dell'erogazione degli incentivi","entro 30 giorni dalla approvazione del presente piano degli obiettivi 2019/2021","SI",null,null,null,null,null,null,null,null,null,null,null,null,null,"X"]
[null,null,null,"2) predisporre il  format per rilevazione del monitoraggio obiettivi da fornire alle P.O.","entro il 30/6/2019","SI",null,null,null,null,null,null,null,null,null,null,null,null,null,"X"]
[null,null,null,"3) predisporre i format schede di valutazione","entro il 30/6/2019","SI",null,null,null,null,null,null,null,null,null,null,null,null,null,null,null,null,"X"]
[null,null,null,"4)corso di  formazione alle P.O. per l'utilizzo","entro il 30/6/2019","SI",null,null,null,null,null,null,null,null,null,null,null,null,null,null,null,null,"X"]
[null,null,null,"5) acquisizione schede di valutazione dalle P.O.","entro 31/7/2019 e comunque dopo la verifica dello stato di relaizzazioned egli obiettivi da parte del Nucleo di Valutazione","SI",null,null,null,null,null,null,null,null,null,null,null,null,null,null,null,null,"X"]
[null,null,null,"6) predisporre formati di restituzione esito monitoraggio obiettivi","2019-08-31","SI",null,null,null,null,null,null,null,null,null,null,null,null,null,"x"]
["peso  percentuale",null,null,null,null,null,{"$f":"100/14","v":7.1428571428571432},null,null,null,null,null,null,null,null,null,null,null,null,16.66]
[]
[null,null,null,null,null,null,null,"P.Fattori"]
["n.","OBIETTIVO DI MIGLIORAMENTO DEI SERVIZI triennio 2019-2021","descrizione","risultati attesi","tempi di realizzazione ","indicatori di risultato","peso  percentuale"]
[15,"Nuovo Regolamento per l'utilizzo degli immobili comunali","Ridefinire in collaborazione dei referenti dell'Obiettivo 10 le regole di concessione in uso degli immobili comunali per il corretto e ottimale utilizzo dei beni dell'Ente","1)  predisporre la bozza di regolamento da sottoporre alla Giunta comunale","entro il 30/11/2019"]
[null,null,null,"2) predisposizione della deliberazione consiliare per la approvazione del regolamento","entro il 31/12/2019"]
["peso  percentuale",null,null,null,null,null,50]
[]
[]
[]
[]
[null,null,null,null,null,null,null,"P.Fattori"]
["n.","OBIETTIVO DI MIGLIORAMENTO DEI SERVIZI triennio 2019-2021","descrizione","risultati attesi","tempi di realizzazione ","indicatori di risultato","peso  percentuale"]
[16,"Formazione interna in materia di anticorruzione, trasparenza e codice di comportamento","Attuare specifici interveventi formativi ai dipendenti del comune","1)  scondo un calendario prestabilito e comunicato ai dipendenti attuare corsi di formazione ai dipendenti  di ciasuno dei 7 Settori dell'Ente","almeno a 6 settori su 7 entro 31/12/2019"]
["peso  percentuale",null,null,null,null,null,50]

{"sheet":"2020","index":1,"n_rows":73,"n_cols":26,"rows_kept":73,"cut":false,"hidden":false,"merged":[[13,7,13,9],[13,11,13,12],[18,11,18,12],[18,13,18,14],[0,2,0,6],[2,7,2,9],[2,11,2,12],[2,13,2,14],[22,19,22,22],[28,19,28,22],[7,7,7,9],[7,11,7,12],[7,13,7,14],[9,7,9,9],[9,11,9,12],[9,13,9,14],[13,13,13,14],[18,7,18,9],[24,23,24,25],[13,23,13,25],[18,23,18,25],[7,23,7,25],[24,19,24,22],[13,15,13,18],[24,15,24,18],[18,19,18,22],[18,15,18,18],[13,19,13,22],[22,15,22,18],[2,15,2,18],[2,19,2,22],[9,15,9,18],[9,23,9,25],[9,19,9,22],[7,15,7,18],[7,19,7,22],[2,23,2,25],[22,23,22,25],[24,7,24,9],[24,11,24,12],[24,13,24,14],[40,7,40,9],[34,13,34,14],[22,7,22,9],[22,11,22,12],[22,13,22,14],[46,7,46,9],[30,13,30,14],[28,11,28,12],[30,7,30,9],[30,11,30,12],[28,7,28,9],[34,7,34,9],[34,11,34,12],[30,15,30,18],[28,13,28,14],[34,23,34,25],[34,15,34,18],[30,19,30,22],[28,23,28,25],[30,23,30,25],[28,15,28,18],[36,7,36,9],[36,11,36,12],[40,13,40,14],[40,15,40,18],[40,11,40,12],[36,15,36,18],[36,13,36,14],[53,23,53,25],[53,19,53,22],[49,15,49,18],[49,19,49,22],[53,15,53,18],[34,19,34,22],[40,23,40,25],[36,19,36,22],[40,19,40,22],[36,23,36,25],[42,23,42,25],[46,23,46,25],[46,19,46,22],[42,19,42,22],[46,15,46,18],[49,23,49,25],[63,11,63,12],[66,15,66,18],[49,7,49,9],[49,11,49,12],[49,13,49,14],[42,13,42,14],[46,13,46,14],[42,7,42,9],[42,11,42,12],[42,15,42,18],[46,11,46,12],[55,15,55,18],[69,13,69,14],[69,15,69,18],[53,7,53,9],[53,11,53,12],[53,13,53,14],[61,13,61,14],[63,13,63,14],[69,11,69,12],[72,23,72,25],[66,23,66,25],[69,19,69,22],[69,23,69,25],[72,19,72,22],[55,19,55,22],[61,23,61,25],[55,23,55,25],[66,11,66,12],[66,7,66,9],[66,19,66,22],[61,11,61,12],[63,19,63,22],[55,11,55,12],[61,15,61,18],[55,7,55,9],[63,7,63,9],[63,15,63,18],[55,13,55,14],[69,7,69,9],[63,23,63,25],[61,19,61,22],[72,7,72,9],[72,11,72,12],[72,13,72,14],[72,15,72,18],[66,13,66,14],[61,7,61,9]]}
[null,null,"PIANO DEGLI OBIETTIVI 2019/2021 - ANNO 2020"]
[]
[null,null,null,null,null,null,null,"F. Callegher ",null,null,"D. Coro'","M. Favaron",null,"S. Pattaro ",null,"N. Rossato",null,null,null,"A. Scroccaro",null,null,null,"P. Stradiotto"]
["n.","OBIETTIVO STRATEGICO triennio 2019-2021","descrizione","risultati attesi","tempi di realizzazione ","indicatori di risultato","peso  percentuale","LL:PP","MANUTENZIONI","AMBIENTE","ED. PRIVATA","SEGRETERIA","LEGALE CASA","ANAGRAFE","RELAZIONI PUBBL","URBANISTICA","COMMERCIO","SUAP","CED","CONTABILITA'","ECONOMATO","TRIBUTI","RISORSE UMANE","SERV. SOCIALE","P.I. SPORT ASSOC","BIBLIOTECA"]
[1,"DOPO ISTITUZIONE IMPOSTA DI SOGGIORNO","obiettivo dell'ente è lo sviluppo del turismo nel territorio comunale quale comune di prima cintura della Città Metropolitana.","1) convocazione associazioni di categoria e operatori economici interessati per verifica criticità nella gestione e progettazione degli interventi per il territorio da finanziare con gli introiti","entro il 28/03/2020",null,null,null,null,null,null,null,null,null,null,null,null,null,null,null,null,"X"]
[null,null,null,"2) report all'A.C ","entro il 30/05/2020",null,null,null,null,null,null,null,null,null,null,null,null,null,null,null,null,"X"]
[null,null,null,"3) EVENTUALE predisposizione proposta di deliberazione consiliare se risulta necessario apportare modifiche regolamentari","entro il  giorno antecedente la convocazione della seduta del Consiglio comunale per la approvazione",null,null,null,null,null,null,null,null,null,null,null,null,null,null,null,null,"X"]
["peso  percentuale",null,null,null,null,null,{"$f":"100/11","v":9.0909090909090917}]
[]
[null,null,null,null,null,null,null,"F. Callegher ",null,null,"D. Coro'","M. Favaron",null,"S. Pattaro ",null,"N. Rossato",null,null,null,"A. Scroccaro",null,null,null,"P. Stradiotto"]
["n.","OBIETTIVO DI MANTENIMENTO triennio 2019-2021","descrizione","risultati attesi","tempi di realizzazione ","indicatori di risultato","peso  percentuale","LL:PP","MANUTENZIONI","AMBIENTE","ED. PRIVATA","SEGRETERIA","LEGALE CASA","ANAGRAFE","RELAZIONI PUBBL","URBANISTICA","COMMERCIO","SUAP","CED","CONTABILITA'","ECONOMATO","TRIBUTI","RISORSE UMANE","SERV. SOCIALE","P.I. SPORT ASSOC","BIBLIOTECA"]
[2,"AGGIORNAMENTO CARTA DEI SERVIZI \"Abitare la casa a Martellago\"","obiettivo dell'ente è fornire al cittadino una guida su ciò che deve fare per venire ad abitare a Martellago","1) aggiornamento delle sezioni della carta","entro il 31/03/2020",null,null,null,null,"X","X",null,"X","X","X (MESSI)",null,null,null,null,null,null,"X"]
[null,null,null,"2) pubblicazione sul sito e aggiornamento APP","entro il 30/04/2020",null,null,null,null,null,null,null,null,null,"X"]
["peso  percentuale",null,null,null,null,null,{"$f":"100/11","v":9.0909090909090917}]
[]
[]
[]
[]
[null,null,null,null,null,null,null,"F. Callegher ",null,null,"D. Coro'","M. Favaron",null,"S. Pattaro ",null,"N. Rossato",null,null,null,"A. Scroccaro",null,null,null,"P. Stradiotto"]
["n.","OBIETTIVO DI MANTENIMENTO triennio 2019-2021","descrizione","risultati attesi","tempi di realizzazione ","indicatori di risultato","peso  percentuale","LL:PP","MANUTENZIONI","AMBIENTE","ED. PRIVATA","SEGRETERIA","LEGALE CASA","ANAGRAFE","RELAZIONI PUBBL","URBANISTICA","COMMERCIO","SUAP","CED","CONTABILITA'","ECONOMATO","TRIBUTI","RISORSE UMANE","SERV. SOCIALE","P.I. SPORT ASSOC","BIBLIOTECA"]
[3," AGGIORNAMENTO CARTA DEI SERVIZI \"La mia attività produttiva a Martellago\"","obiettivo dell'ente è fornire al cittadino una guida su ciò che deve fare per avviare una attività produttiva a Martellago","1) aggiornamento delle sezioni della carta","entro il 31/03/2020",null,null,null,"X","X","X",null,null,null,null,null,"X","X",null,null,null,"X"]
[null,null,null,"2) pubblicazione sul sito e aggiornamento APP","entro il 30/04/2020",null,null,null,null,null,null,null,null,null,"X"]
["peso  percentuale",null,null,null,null,null,{"$f":"100/11","v":9.0909090909090917}]
[]
[null,null,null,null,null,null,null,"F. Callegher ",null,null,"D. Coro'","M. Favaron",null,"S. Pattaro ",null,"N. Rossato",null,null,null,"A. Scroccaro",null,null,null,"P. Stradiotto"]
["n.","OBIETTIVO DI MANTENIMENTO triennio 2019-2021","descrizione","risultati attesi","tempi di realizzazione ","indicatori di risultato","peso  percentuale","LL:PP","MANUTENZIONI","AMBIENTE","ED. PRIVATA","SEGRETERIA","LEGALE CASA","ANAGRAFE","RELAZIONI PUBBL","URBANISTICA","COMMERCIO","SUAP","CED","CONTABILITA'","ECONOMATO","TRIBUTI","RISORSE UMANE","SERV. SOCIALE","P.I. SPORT ASSOC","BIBLIOTECA"]
[4,"AGGIORNAMENTO  CARTA DEI SERVIZI \"Servizi alla persona in Comune a Martellago\"","obiettivo dell'ente è fornire al cittadino una guida su ciò che deve fare per i bisogni della persona","1) aggiornamento delle sezioni della carta","entro il 31/03/2020",null,null,null,null,null,null,null,null,null,null,null,null,null,null,null,null,null,null,"X"]
[null,null,null,"2) pubblicazione sul sito e aggiornamento APP","entro il 30/04/2020",null,null,null,null,null,null,null,null,"X","X"]
["peso  percentuale",null,null,null,null,null,{"$f":"100/11","v":9.0909090909090917}]
[]
[null,null,null,null,null,null,null,"F. Callegher ",null,null,"D. Coro'","M. Favaron",null,"S. Pattaro ",null,"N. Rossato",null,null,null,"A. Scroccaro",null,null,null,"P. Stradiotto"]
["n.","OBIETTIVO DI MANTENIMENTO triennio 2019-2021","descrizione","risultati attesi","tempi di realizzazione ","indicatori di risultato","peso  percentuale","LL:PP","MANUTENZIONI","AMBIENTE","ED. PRIVATA","SEGRETERIA","LEGALE CASA","ANAGRAFE","RELAZIONI PUBBL","URBANISTICA","COMMERCIO","SUAP","CED","CONTABILITA'","ECONOMATO","TRIBUTI","RISORSE UMANE","SERV. SOCIALE","P.I. SPORT ASSOC","BIBLIOTECA"]
[5," AGGIORNAMENTO CARTA DEI SERVIZI \"Mio figlio a scuola a Martellago\"","obiettivo dell'ente è fornire al cittadino una guida su ciò che deve fare per l'istruzione del proprio figlio","1) aggiornamento delle sezioni della carta","entro il 31/03/2020",null,null,null,null,null,null,null,null,null,null,null,null,null,null,null,null,null,null,null,"X"]
[null,null,null,"2) pubblicazione sul sito e aggiornamento APP","entro il 30/04/2020",null,null,null,null,null,null,null,null,null,"X"]
["peso  percentuale",null,null,null,null,null,{"$f":"100/11","v":9.0909090909090917}]
[]
[null,null,null,null,null,null,null,"F. Callegher ",null,null,"D. Coro'","M. Favaron",null,"S. Pattaro ",null,"N. Rossato",null,null,null,"A. Scroccaro",null,null,null,"P. Stradiotto"]
["n.","OBIETTIVO DI MANTENIMENTO triennio 2019-2021","descrizione","risultati attesi","tempi di realizzazione ","indicatori di risultato","peso  percentuale","LL:PP","MANUTENZIONI","AMBIENTE","ED. PRIVATA","SEGRETERIA","LEGALE CASA","ANAGRAFE","RELAZIONI PUBBL","URBANISTICA","COMMERCIO","SUAP","CED","CONTABILITA'","ECONOMATO","TRIBUTI","RISORSE UMANE","SERV. SOCIALE","P.I. SPORT ASSOC","BIBLIOTECA"]
[6," AGGIORNAMENTO CARTA DEI SERVIZI \"Le pari opportunità a Martellago\"","obiettivo dell'ente è fornire al cittadino una guida per la tutela dei diritti e le pari opportunità","1) aggiornamento delle sezioni della carta","entro il 31/03/2020",null,null,null,null,null,null,null,null,null,null,null,null,null,null,null,"X",null,null,"X"]
[null,null,null,"2) pubblicazione sul sito e aggiornamento APP","entro il 30/04/2020",null,null,null,null,null,null,null,null,null,"X"]
["peso  percentuale",null,null,null,null,null,{"$f":"100/11","v":9.0909090909090917}]
[]
[null,null,null,null,null,null,null,"F. Callegher ",null,null,"D. Coro'","M. Favaron",null,"S. Pattaro ",null,"N. Rossato",null,null,null,"A. Scroccaro",null,null,null,"P. Stradiotto"]
["n.","OBIETTIVO DI MANTENIMENTO triennio 2019-2021","descrizione","risultati attesi","tempi di realizzazione ","indicatori di risultato","peso  percentuale","LL:PP","MANUTENZIONI","AMBIENTE","ED. PRIVATA","SEGRETERIA","LEGALE CASA","ANAGRAFE","RELAZIONI PUBBL","URBANISTICA","COMMERCIO","SUAP","CED","CONTABILITA'","ECONOMATO","TRIBUTI","RISORSE UMANE","SERV. SOCIALE","P.I. SPORT ASSOC","BIBLIOTECA"]
[7," AGGIORNAMENTO CARTA DEI SERVIZI \"L'ambiente\"","obiettivo dell'ente è fornire al cittadino una guida per la tutela dei diritti e le pari opportunità","1) aggiornamento delle sezioni della carta","entro il 31/03/2020",null,null,null,null,"X"]
[null,null,null,"2) pubblicazione sul sito e aggiornamento APP","entro il 30/04/2020",null,null,null,null,null,null,null,null,null,"X"]
["peso  percentuale",null,null,null,null,null,{"$f":"100/11","v":9.0909090909090917}]
[]
[]
[null,null,null,null,null,null,null,"F. Callegher ",null,null,"D. Coro'","M. Favaron",null,"S. Pattaro ",null,"N. Rossato",null,null,null,"A. Scroccaro",null,null,null,"P. Stradiotto"]
["n.","OBIETTIVO TRASVERSALE triennio 2019-2021","descrizione","risultati attesi","tempi di realizzazione ","indicatori di risultato","peso  percentuale","LL:PP","MANUTENZIONI","AMBIENTE","ED. PRIVATA","SEGRETERIA","LEGALE CASA","ANAGRAFE","RELAZIONI PUBBL","URBANISTICA","COMMERCIO","SUAP","CED","CONTABILITA'","ECONOMATO","TRIBUTI","RISORSE UMANE","SERV. SOCIALE","P.I. SPORT ASSOC","BIBLIOTECA"]
[8,"Trasferimento uffici dalla sede municipale e realizzazione interventi necessari . Trasloco ","obiettivo dell'ente è ottimizzare l'utilizzo degli spazi della sede municipale oggetto di  ristrutturazione; minimizzare i disagi ai cittadini nel periodo propedeutico al trasloco, durante l'esecuzione dei lavori e fino all'ultimazione.","1) Realizzazione degli interventi necessari per il ricavo di locali ad uso uffici presso la sede ex scuola Goldoni.","entro il 31/3/2020 e comunque compatibilmente con l'ottenimento della messa a disposizione dei locali utilizzata da associazioni.",null,null,"X","X",null,null,null,null,null,"X(ARCHIVISTA)",null,null,null,"X"]
[null,null,null,"2 Trasloco di arredi e trasferimento personale ","entro il 31/05/2020 ovvero in tempo utile per consentire il tempestivo inizio del cantiere del municipio.","Effettuazione del trasferimento degli uffici",null,"X","X ",null,null,null,null,null,"X(ARCHIVISTA)",null,null,null,"X"]
["peso  percentuale",null,null,null,null,null,{"$f":"100/11","v":9.0909090909090917}]
[]
[null,null,null,null,null,null,null,"F. Callegher ",null,null,"D. Coro'","M. Favaron",null,"S. Pattaro ",null,"N. Rossato",null,null,null,"A. Scroccaro",null,null,null,"P. Stradiotto"]
["n.","OBIETTIVO DI MANTENIMENTO  triennio 2019-2021","descrizione","risultati attesi","tempi di realizzazione ","indicatori di risultato","peso  percentuale","LL:PP","MANUTENZIONI","AMBIENTE","ED. PRIVATA","SEGRETERIA","LEGALE CASA","ANAGRAFE","RELAZIONI PUBBL","URBANISTICA","COMMERCIO","SUAP","CED","CONTABILITA'","ECONOMATO","TRIBUTI","RISORSE UMANE","SERV. SOCIALE","P.I. SPORT ASSOC","BIBLIOTECA"]
[9,"Istituzione dell'ufficio per il reperimento di bandi regionali, nazionali e europei di finanziamento di progetti di miglioramento dei servizi","obiettivo dell'ente è creare un ufficio che si attivi nella ricerca e nello studio di bandi di finanziamento per reperire nuovi fondi alternativi ai prelievi fiscali sui cittadini ","1) A cadenza mensile inviare alla Giunta comunale i bandi attivi ","entro l'utima giunta utile di ciascun mese",null,null,null,null,null,null,"X","X"]
[null,null,null,"2) rispetto ai bandi selezionati dalla Giunta convocare le P.O. ","entro il quinto giorno successivo alla seduta di giunta convocare il funzionario competente",null,null,null,null,null,null,"X"]
[null,null,null,"3) parere della P.O.interessata corredato dal parere contabile se necessario","entro la prima seduta utile  rispetto alla data di scadenza"]
[null,null,null,"4) Collaborazione e coordianamento attività di predisposizione delle domande di partecipazione ai bandi selezionati dalla Giunta","entro la data di scadenza di ciascun bando",null,null,null,null,null,null,"X"]
["peso  percentuale",null,null,null,null,null,{"$f":"100/11","v":9.0909090909090917}]
[]
[null,null,null,null,null,null,null,"F. Callegher ",null,null,"D. Coro'","M. Favaron",null,"S. Pattaro ",null,"N. Rossato",null,null,null,"A. Scroccaro",null,null,null,"P. Stradiotto"]
["n.","OBIETTIVO DI MANTENIMENTO triennio 2019-2021","descrizione","risultati attesi","tempi di realizzazione ","indicatori di risultato","peso  percentuale","LL:PP","MANUTENZIONI","AMBIENTE","ED. PRIVATA","SEGRETERIA","LEGALE CASA","ANAGRAFE","RELAZIONI PUBBL","URBANISTICA","COMMERCIO","SUAP","CED","CONTABILITA'","ECONOMATO","TRIBUTI","RISORSE UMANE","SERV. SOCIALE","P.I. SPORT ASSOC","BIBLIOTECA"]
[10,"GESTIONE della Consulta pubblico-privato per la pianificazione urbanistica ","obiettivo dell'ente è quello di coinvolgere i cittadini e gli operatori economici nella analisi degli interventi di pianificazione urbanistica da attuare  ","1) Dopo l'istituzione della Consulta organizzare l'attività","entro il 31/1/2020",null,null,"X","X","X","X",null,null,null,null,"X"]
["peso  percentuale",null,null,null,null,null,{"$f":"100/11","v":9.0909090909090917}]
[]
[]
[null,null,null,null,null,null,null,"F. Callegher ",null,null,"D. Coro'","M. Favaron",null,"S. Pattaro ",null,"N. Rossato",null,null,null,"A. Scroccaro",null,null,null,"P. Stradiotto"]
["n.","OBIETTIVO DI MANTENIMENTO  triennio 2019-2021","descrizione","risultati attesi","tempi di realizzazione ","indicatori di risultato","peso  percentuale","LL:PP","MANUTENZIONI","AMBIENTE","ED. PRIVATA","SEGRETERIA","LEGALE CASA","ANAGRAFE","RELAZIONI PUBBL","URBANISTICA","COMMERCIO","SUAP","CED","CONTABILITA'","ECONOMATO","TRIBUTI","RISORSE UMANE","SERV. SOCIALE","P.I. SPORT ASSOC","BIBLIOTECA"]
[11,"GESTIONE del sistema informativo di gestione, monitoraggio e rendicontazione del ciclo della performance","obiettivo dell'ente è quello di rentrare tracciabile, monitorabile e verificabile lo stato di progettazione e realizzazione degli obiettivi gestionali e la valutazione del personale dell'ente  ","1) gestione del sistema \"ciclo della performance\"","entro le scadenze previste dal sistema di valutazione ",null,null,null,null,null,null,null,null,null,null,null,null,null,null,"X",null,null,"X"]
["peso  percentuale",null,null,null,null,null,{"$f":"100/11","v":9.0909090909090917}]

{"sheet":"2021","index":2,"n_rows":67,"n_cols":26,"rows_kept":67,"cut":false,"hidden":false,"merged":[[9,15,9,18],[18,19,18,22],[9,13,9,14],[24,13,24,14],[34,15,34,18],[34,23,34,25],[1,2,1,6],[3,7,3,9],[3,11,3,12],[9,11,9,12],[7,11,7,12],[22,19,22,22],[9,23,9,25],[18,23,18,25],[9,19,9,22],[3,13,3,14],[22,7,22,9],[24,7,24,9],[7,13,7,14],[7,7,7,9],[9,7,9,9],[22,13,22,14],[28,19,28,22],[28,15,28,18],[24,19,24,22],[24,23,24,25],[24,15,24,18],[18,7,18,9],[18,11,18,12],[18,13,18,14],[24,11,24,12],[22,15,22,18],[22,23,22,25],[22,11,22,12],[3,23,3,25],[3,15,3,18],[3,19,3,22],[7,23,7,25],[7,15,7,18],[7,19,7,22],[18,15,18,18],[42,7,42,9],[28,13,28,14],[28,23,28,25],[36,23,36,25],[28,7,28,9],[36,7,36,9],[30,15,30,18],[40,11,40,12],[28,11,28,12],[30,19,30,22],[40,15,40,18],[40,13,40,14],[40,19,40,22],[30,11,30,12],[30,13,30,14],[34,11,34,12],[36,11,36,12],[36,13,36,14],[34,13,34,14],[30,7,30,9],[30,23,30,25],[36,15,36,18],[34,19,34,22],[42,23,42,25],[36,19,36,22],[40,7,40,9],[34,7,34,9],[42,11,42,12],[40,23,40,25],[58,19,58,22],[58,15,58,18],[46,15,46,18],[42,13,42,14],[42,15,42,18],[46,23,46,25],[42,19,42,22],[46,19,46,22],[46,13,46,14],[56,23,56,25],[66,23,66,25],[63,23,63,25],[58,23,58,25],[50,11,50,12],[56,11,56,12],[66,15,66,18],[66,19,66,22],[63,19,63,22],[50,23,50,25],[46,7,46,9],[56,19,56,22],[56,15,56,18],[50,15,50,18],[56,13,56,14],[50,13,50,14],[50,19,50,22],[56,7,56,9],[46,11,46,12],[50,7,50,9],[66,7,66,9],[58,13,58,14],[63,13,63,14],[63,15,63,18],[66,11,66,12],[66,13,66,14],[63,7,63,9],[58,7,58,9],[63,11,63,12],[58,11,58,12]]}
[]
[null,null,"PIANO DEGLI OBIETTIVI 2019/2021 - ANNO 2021"]
[]
[null,null,null,null,null,null,null,"F. Callegher ",null,null,"D. Coro'","M. Favaron",null,"S. Pattaro ",null,"N. Rossato",null,null,null,"A. Scroccaro",null,null,null,"P. Stradiotto"]
["n.","OBIETTIVO DI MANTENIMENTO triennio 2019-2021","descrizione","risultati attesi","tempi di realizzazione ","indicatori di risultato","peso  percentuale","LL:PP","MANUTENZIONI","AMBIENTE","ED. PRIVATA","SEGRETERIA","LEGALE CASA","ANAGRAFE","RELAZIONI PUBBL","URBANISTICA","COMMERCIO","SUAP","CED","CONTABILITA'","ECONOMATO","TRIBUTI","RISORSE UMANE","SERV. SOCIALE","P.I. SPORT ASSOC","BIBLIOTECA"]
[1,"ISTITUZIONE IMPOSTA DI SOGGIORNO","obiettivo dell'ente è lo sviluppo del turismo nel territorio comunale quale comune di prima cintura della Città Metropolitana.","1) convocazione associazioni di categoria e operatori economici interessati per verifica criticità nella gestione e progettazione degli interventi per il territorio da finanziare con gli introiti","entro il 28/03/2021",null,null,null,null,null,null,null,null,null,null,null,"X",null,null,null,null,"X"]
[null,null,null,"2) report all'A.C ","entro il 30/05/2021",null,null,null,null,null,null,null,null,null,null,null,"X",null,null,null,null,"X"]
["peso  percentuale",null,null,null,null,null,{"$f":"100/10","v":10}]
[]
[null,null,null,null,null,null,null,"F. Callegher ",null,null,"D. Coro'","M. Favaron",null,"S. Pattaro ",null,"N. Rossato",null,null,null,"A. Scroccaro",null,null,null,"P. Stradiotto"]
["n.","OBIETTIVO DI MANTENIMENTO triennio 2019-2021","descrizione","risultati attesi","tempi di realizzazione ","indicatori di risultato","peso  percentuale","LL:PP","MANUTENZIONI","AMBIENTE","ED. PRIVATA","SEGRETERIA","LEGALE CASA","ANAGRAFE","RELAZIONI PUBBL","URBANISTICA","COMMERCIO","SUAP","CED","CONTABILITA'","ECONOMATO","TRIBUTI","RISORSE UMANE","SERV. SOCIALE","P.I. SPORT ASSOC","BIBLIOTECA"]
[2,"AGGIORNAMENTO CARTA DEI SERVIZI \"Abitare la casa a Martellago\"","obiettivo dell'ente è fornire al cittadino una guida su ciò che deve fare per venire ad abitare a Martellago","1) aggiornamento delle sezioni della carta","entro il 31/03/2021",null,null,null,null,"X","X",null,"X","X","X (MESSI)",null,null,null,null,null,null,"X"]
[null,null,null,"2) pubblicazione sul sito","entro il 30/04/2021",null,null,null,null,null,null,null,null,null,"X"]
["peso  percentuale",null,null,null,null,null,{"$f":"100/10","v":10}]
[]
[]
[]
[]
[null,null,null,null,null,null,null,"F. Callegher ",null,null,"D. Coro'","M. Favaron",null,"S. Pattaro ",null,"N. Rossato",null,null,null,"A. Scroccaro",null,null,null,"P. Stradiotto"]
["n.","OBIETTIVO DI MANTENIMENTO triennio 2019-2021","descrizione","risultati attesi","tempi di realizzazione ","indicatori di risultato","peso  percentuale","LL:PP","MANUTENZIONI","AMBIENTE","ED. PRIVATA","SEGRETERIA","LEGALE CASA","ANAGRAFE","RELAZIONI PUBBL","URBANISTICA","COMMERCIO","SUAP","CED","CONTABILITA'","ECONOMATO","TRIBUTI","RISORSE UMANE","SERV. SOCIALE","P.I. SPORT ASSOC","BIBLIOTECA"]
[3,"AGGIORNAMENTO CARTA DEI SERVIZI \"La mia attività produttiva a Martellago\"","obiettivo dell'ente è fornire al cittadino una guida su ciò che deve fare per avviare una attività produttiva a Martellago","1) aggiornamento delle sezioni della carta","entro il 31/03/2021",null,null,null,"X","X","X",null,null,null,null,null,"X","X",null,null,null,"X"]
[null,null,null,"2) pubblicazione sul sito","entro il 30/04/2021",null,null,null,null,null,null,null,null,null,"X"]
["peso  percentuale",null,null,null,null,null,{"$f":"100/10","v":10}]
[]
[null,null,null,null,null,null,null,"F. Callegher ",null,null,"D. Coro'","M. Favaron",null,"S. Pattaro ",null,"N. Rossato",null,null,null,"A. Scroccaro",null,null,null,"P. Stradiotto"]
["n.","OBIETTIVO DI MANTENIMENTO triennio 2019-2021","descrizione","risultati attesi","tempi di realizzazione ","indicatori di risultato","peso  percentuale","LL:PP","MANUTENZIONI","AMBIENTE","ED. PRIVATA","SEGRETERIA","LEGALE CASA","ANAGRAFE","RELAZIONI PUBBL","URBANISTICA","COMMERCIO","SUAP","CED","CONTABILITA'","ECONOMATO","TRIBUTI","RISORSE UMANE","SERV. SOCIALE","P.I. SPORT ASSOC","BIBLIOTECA"]
[4," AGGIORNAMENTO CARTA DEI SERVIZI \"Servizi alla persona in Comune a Martellago\"","obiettivo dell'ente è fornire al cittadino una  guida su ciò che deve fare per i bisogni della persona","1) aggiornamento delle sezioni della carta","entro il 31/03/2021",null,null,null,null,null,null,null,null,null,null,null,null,null,null,null,null,null,null,"X"]
[null,null,null,"2) pubblicazione sul sito","entro il 30/04/2021",null,null,null,null,null,null,null,null,null,"X"]
["peso  percentuale",null,null,null,null,null,{"$f":"100/10","v":10}]
[]
[null,null,null,null,null,null,null,"F. Callegher ",null,null,"D. Coro'","M. Favaron",null,"S. Pattaro ",null,"N. Rossato",null,null,null,"A. Scroccaro",null,null,null,"P. Stradiotto"]
["n.","OBIETTIVO DI MANTENIMENTO triennio 2019-2021","descrizione","risultati attesi","tempi di realizzazione ","indicatori di risultato","peso  percentuale","LL:PP","MANUTENZIONI","AMBIENTE","ED. PRIVATA","SEGRETERIA","LEGALE CASA","ANAGRAFE","RELAZIONI PUBBL","URBANISTICA","COMMERCIO","SUAP","CED","CONTABILITA'","ECONOMATO","TRIBUTI","RISORSE UMANE","SERV. SOCIALE","P.I. SPORT ASSOC","BIBLIOTECA"]
[5,"AGGIORNAMENTO  CARTA DEI SERVIZI \"Mio figlio a scuola a Martellago\"","obiettivo dell'ente è fornire al cittadino una guida su ciò che deve fare per l'istruzione del proprio figlio","1) aggiornamento delle sezioni della carta","entro il 31/03/2021",null,null,null,null,null,null,null,null,null,null,null,null,null,null,null,null,null,null,null,"X"]
[null,null,null,"2) pubblicazione sul sito","entro il 30/04/2021",null,null,null,null,null,null,null,null,"X","X"]
["peso  percentuale",null,null,null,null,null,{"$f":"100/10","v":10}]
[]
[null,null,null,null,null,null,null,"F. Callegher ",null,null,"D. Coro'","M. Favaron",null,"S. Pattaro ",null,"N. Rossato",null,null,null,"A. Scroccaro",null,null,null,"P. Stradiotto"]
["n.","OBIETTIVO DI MANTENIMENTO triennio 2019-2021","descrizione","risultati attesi","tempi di realizzazione ","indicatori di risultato","peso  percentuale","LL:PP","MANUTENZIONI","AMBIENTE","ED. PRIVATA","SEGRETERIA","LEGALE CASA","ANAGRAFE","RELAZIONI PUBBL","URBANISTICA","COMMERCIO","SUAP","CED","CONTABILITA'","ECONOMATO","TRIBUTI","RISORSE UMANE","SERV. SOCIALE","P.I. SPORT ASSOC","BIBLIOTECA"]
[6," AGGIORNAMENTO CARTA DEI SERVIZI \"Le pari opportunità a Martellago\"","obiettivo dell'ente è fornire al cittadino una guida per la tutela dei diritti e le pari opportunità","1) aggiornamento delle sezioni della carta","entro il 31/03/2021",null,null,null,null,null,null,null,null,null,null,null,null,null,null,null,"X",null,null,"X"]
[null,null,null,"2) pubblicazione sul sito","entro il 30/04/2021",null,null,null,null,null,null,null,null,null,"X"]
["peso  percentuale",null,null,null,null,null,{"$f":"100/10","v":10}]
[]
[null,null,null,null,null,null,null,"F. Callegher ",null,null,"D. Coro'","M. Favaron",null,"S. Pattaro ",null,"N. Rossato",null,null,null,"A. Scroccaro",null,null,null,"P. Stradiotto"]
["n.","OBIETTIVO DI MANTENIMENTO triennio 2019-2021","descrizione","risultati attesi","tempi di realizzazione ","indicatori di risultato","peso  percentuale","LL:PP","MANUTENZIONI","AMBIENTE","ED. PRIVATA","SEGRETERIA","LEGALE CASA","ANAGRAFE","RELAZIONI PUBBL","URBANISTICA","COMMERCIO","SUAP","CED","CONTABILITA'","ECONOMATO","TRIBUTI","RISORSE UMANE","SERV. SOCIALE","P.I. SPORT ASSOC","BIBLIOTECA"]
[7,"AGGIORNAMENTO  CARTA DEI SERVIZI \"L'ambiente\"","obiettivo dell'ente è fornire al cittadino una guida per la tutela dei diritti e le pari opportunità","1) aggiornamento delle sezioni della carta","entro il 31/03/2021",null,null,null,null,"X"]
[null,null,null,"2) pubblicazione sul sito","entro il 30/04/2021",null,null,null,null,null,null,null,null,null,"X"]
["peso  percentuale",null,null,null,null,null,{"$f":"100/10","v":10}]
[]
[]
[]
[null,null,null,null,null,null,null,"F. Callegher ",null,null,"D. Coro'","M. Favaron",null,"S. Pattaro ",null,"N. Rossato",null,null,null,"A. Scroccaro",null,null,null,"P. Stradiotto"]
["n.","OBIETTIVO DI MANTENIMENTO triennio 2019-2021","descrizione","risultati attesi","tempi di realizzazione ","indicatori di risultato","peso  percentuale","LL:PP","MANUTENZIONI","AMBIENTE","ED. PRIVATA","SEGRETERIA","LEGALE CASA","ANAGRAFE","RELAZIONI PUBBL","URBANISTICA","COMMERCIO","SUAP","CED","CONTABILITA'","ECONOMATO","TRIBUTI","RISORSE UMANE","SERV. SOCIALE","P.I. SPORT ASSOC","BIBLIOTECA"]
[8,"Istituzione dell'ufficio per il reperimento di bandi regionali, nazionali e europei di finanziamento di progetti di miglioramento dei servizi","obiettivo dell'ente è creare un ufficio che si attivi nella ricerca e nello studio di bandi di finanziamento per reperire nuovi fondi alternativi ai prelievi fiscali sui cittadini ","1) A cadenza mensile inviare alla Giunta comunale i bandi attivi ","entro l'utima giunta utile di ciascun mese",null,null,null,null,null,null,"X","X"]
[null,null,null,"2) rispetto ai bandi selezionati dalla Giunta convocare le P.O. ","entro il quinto giorno successivo alla seduta di giunta convocare il funzionario competente",null,null,null,null,null,null,"X"]
[null,null,null,"3) parere della P.O.interessata corredato dal parere contabile se necessario","entro la prima seduta utile  rispetto alla data di scadenza"]
[null,null,null,"4) Collaborazione e coordianamento attività di predisposizione delle domande di partecipazione ai bandi selezionati dalla Giunta","entro la data di scadenza di ciascun bando",null,null,null,null,null,null,"X"]
["peso  percentuale",null,null,null,null,null,{"$f":"100/10","v":10}]
[]
[null,null,null,null,null,null,null,"F. Callegher ",null,null,"D. Coro'","M. Favaron",null,"S. Pattaro ",null,"N. Rossato",null,null,null,"A. Scroccaro",null,null,null,"P. Stradiotto"]
["n.","OBIETTIVO DI MANTENIMENTO triennio 2019-2021","descrizione","risultati attesi","tempi di realizzazione ","indicatori di risultato","peso  percentuale","LL:PP","MANUTENZIONI","AMBIENTE","ED. PRIVATA","SEGRETERIA","LEGALE CASA","ANAGRAFE","RELAZIONI PUBBL","URBANISTICA","COMMERCIO","SUAP","CED","CONTABILITA'","ECONOMATO","TRIBUTI","RISORSE UMANE","SERV. SOCIALE","P.I. SPORT ASSOC","BIBLIOTECA"]
[9,"GESTIONE della Consulta pubblico-privato per la pianificazione urbanistica ","obiettivo dell'ente è quello di coinvolgere i cittadini e gli operatori economici nella analisi degli interventi di pianificazione urbanistica da attuare  ","1) Dopo l'istituzione della Consulta organizzare l'attività","entro il 31/1/2021",null,null,"X","X","X","X",null,null,null,null,"X"]
["peso  percentuale"]
[]
[null,null,null,null,null,null,null,"F. Callegher ",null,null,"D. Coro'","M. Favaron",null,"S. Pattaro ",null,"N. Rossato",null,null,null,"A. Scroccaro",null,null,null,"P. Stradiotto"]
["n.","OBIETTIVO DI MANTENIMENTO triennio 2019-2021","descrizione","risultati attesi","tempi di realizzazione ","indicatori di risultato","peso  percentuale","LL:PP","MANUTENZIONI","AMBIENTE","ED. PRIVATA","SEGRETERIA","LEGALE CASA","ANAGRAFE","RELAZIONI PUBBL","URBANISTICA","COMMERCIO","SUAP","CED","CONTABILITA'","ECONOMATO","TRIBUTI","RISORSE UMANE","SERV. SOCIALE","P.I. SPORT ASSOC","BIBLIOTECA"]
[10,"GESTIONE del sistema informativo di gestione, monitoraggio e rendicontazione del ciclo della performance","obiettivo dell'ente è quello di rentrare tracciabile, monitorabile e verificabile lo stato di progettazione e realizzazione degli obiettivi gestionali e la valutazione del personale dell'ente  ","1) gestione del sistema \"ciclo della performance\"","entro le scadenze previste dal sistema di valutazione ",null,null,null,null,null,null,null,null,null,null,null,null,null,null,"X",null,null,"X"]
["peso  percentuale",null,null,null,null,null,{"$f":"100/10","v":10}]